bitfinex/quotes_ETHUSD_20240924
["timestamp","ask_amount","ask_price","bid_price","bid_amount"]
[1727204415798,6.17622376,2642.7,2642.6,0.01583808]
[1727204415996,4.5889,2642.7,2642.6,0.01583808]
[1727204416702,6.17602444,2642.7,2642.6,0.01583808]
[1727204416992,9.09750793,2642.7,2642.6,0.01583808]
[1727204417190,12.80390151,2642.7,2642.6,0.01583808]
[1727204417375,9.09750793,2642.7,2642.6,0.01583808]
[1727204417702,13.35345976,2642.7,2642.6,0.01583808]
[1727204417912,10.97239687,2642.7,2642.6,0.01583808]
[1727204419160,13.74954771,2642.7,2642.6,0.01583808]
[1727204419360,13.74954771,2642.7,2641.8,0.0385828]
[1727204419361,3.78515,2641.9,2641.8,0.0385828]
[1727204419686,6.13000318,2641.9,2641.8,0.0385828]
[1727204421487,5.73181721,2641.9,2641.8,0.0385828]
[1727204423278,5.33540188,2641.9,2641.8,0.0385828]
[1727204423498,4.54535,2641.9,2641.8,0.09413137]
[1727204423798,5.57603791,2641.9,2641.8,0.0385828]
[1727204425214,1.55025188,2642.1,2641.8,0.0385828]
[1727204425369,4.54534,2642.0,2641.8,0.0385828]
[1727204425562,4.54534,2642.0,2641.9,0.05550191]
[1727204425761,8.33047,2642.0,2641.8,0.0385828]
[1727204426002,0.91205219,2641.9,2641.8,0.0385828]
[1727204426421,4.69720219,2641.9,2641.8,0.0385828]
[1727204426562,3.45738219,2642.0,2641.8,0.0385828]
[1727204426905,7.24249219,2642.0,2641.8,0.0385828]
[1727204427069,4.2606366,2642.0,2641.9,0.05550191]
[1727204427405,4.2606366,2642.0,2641.8,0.0385828]
[1727204427604,7.24250219,2642.0,2641.8,0.0385828]
[1727204427787,3.45738219,2642.0,2641.9,0.05550191]
[1727204428188,3.45738219,2642.0,2641.8,0.0385828]
[1727204428593,3.45738219,2642.0,2641.9,0.05550191]
[1727204429104,3.45738219,2642.0,2641.8,0.0385828]
[1727204429412,3.45738219,2642.0,2641.9,0.05550191]
[1727204429590,3.53298219,2642.0,2641.9,0.05550191]
[1727204430769,4.3437656,2642.0,2641.9,0.05550191]
[1727204431393,3.78515,2641.9,2641.8,0.0385828]
[1727204431699,8.1288656,2642.0,2641.8,0.0385828]
[1727204431867,3.78515,2641.9,2641.8,0.0385828]
[1727204436079,4.67704675,2641.9,2641.8,0.0385828]
[1727204443747,3.78515,2641.9,2641.8,0.0385828]
[1727204444529,4.24743407,2642.0,2641.8,0.0385828]
[1727204444701,3.78515,2641.9,2641.8,0.0385828]
[1727204446951,0.79005188,2642.1,2641.9,0.772]
[1727204447100,0.79005188,2642.3,2642.0,0.22622976]
[1727204447439,3.78475,2642.2,2642.0,0.22622976]
[1727204447745,3.78475,2642.2,2641.9,0.50483]
[1727204448033,4.57466188,2642.3,2641.9,0.50483]
[1727204448206,4.57466188,2642.3,2641.8,0.0385828]
[1727204448207,3.7848,2642.2,2641.8,0.0385828]
[1727204448535,0.79005188,2642.2,2641.8,0.0385828]
[1727204448740,0.79005188,2642.3,2641.8,2.01786331]
[1727204448926,0.79005188,2642.3,2641.9,3.78512]
[1727204450729,4.57477188,2642.2,2642.0,0.8305]
[1727204450919,0.79005188,2642.2,2642.0,0.8305]
[1727204451367,0.79005188,2642.2,2642.1,0.0560772]
[1727204454119,4.97105721,2642.3,2642.1,0.0560772]
[1727204454547,1.18646721,2642.2,2642.1,0.0560772]
[1727204454940,4.97105721,2642.3,2642.1,0.0560772]
[1727204455428,1.18646721,2642.2,2642.1,0.0560772]
[1727204457636,5.36924318,2642.3,2642.1,0.0560772]
[1727204458242,5.36937318,2642.2,2642.1,0.0560772]
[1727204458435,1.58465318,2642.2,2642.1,0.0560772]
[1727204458925,5.36937318,2642.2,2642.1,0.0560772]
[1727204459637,6.9119474,2642.2,2642.1,0.0560772]
[1727204460202,6.9119474,2642.2,2641.9,1.0]
[1727204460203,3.78501,2642.0,2641.9,1.0]
[1727204460333,5.37066568,2642.0,2641.9,1.0]
[1727204460972,5.37066568,2642.0,2641.9,1.5]
[1727204461684,3.78501,2642.0,2641.9,1.5]
[1727204462160,5.37184208,2642.0,2641.9,1.5]
[1727204462588,6.60047922,2642.0,2641.9,1.5]
[1727204462789,5.35644714,2642.0,2641.9,1.5]
[1727204463059,5.01364714,2642.0,2641.9,1.5]
[1727204465031,1.98453307,2642.0,2641.9,2.314]
[1727204465232,1.98453307,2642.0,2641.9,2.814]
[1727204466369,1.98453307,2642.1,2641.9,2.814]
[1727204466574,1.587651,2642.0,2641.9,6.59915]
[1727204466770,1.587651,2642.0,2641.9,7.78662275]
[1727204467666,1.98453307,2642.0,2641.9,2.0]
[1727204467865,5.76954307,2642.0,2641.9,2.0]
[1727204468076,3.78501,2642.0,2641.9,2.0]
[1727204469790,5.11466568,2642.0,2641.9,2.0]
[1727204470453,6.27697581,2642.0,2641.9,2.0]
[1727204470659,4.94732013,2642.0,2641.9,2.0]
[1727204471753,6.27686204,2642.0,2641.9,2.0]
[1727204471994,4.94732013,2642.0,2641.9,2.0]
[1727204472560,6.27684739,2642.0,2641.9,2.0]
[1727204473792,4.94732013,2642.0,2641.9,2.0]
[1727204474282,6.27636937,2642.0,2641.9,2.0]
[1727204474463,4.94732013,2642.0,2641.9,2.0]
[1727204475125,3.78489,2642.1,2641.9,2.814]
[1727204475264,2.38024019,2642.2,2641.9,2.814]
[1727204475488,3.78493,2642.1,2641.9,2.814]
[1727204475965,6.16503019,2642.2,2641.9,2.814]
[1727204476173,3.78501,2642.0,2641.9,2.814]
[1727204476813,3.78501,2642.0,2641.9,2.0]
[1727204483451,3.78489,2642.1,2642.0,0.814]
[1727204484760,1.33159679,2642.2,2642.0,0.814]
[1727204485032,3.78473,2642.2,2642.0,0.814]
[1727204485244,5.11632679,2642.2,2642.0,0.814]
[1727204485448,7.49597764,2642.2,2642.0,0.814]
[1727204486141,1.33159679,2642.2,2642.0,0.814]
[1727204486337,6.16433085,2642.3,2642.0,1.47777328]
[1727204486957,6.16432085,2642.3,2642.0,0.814]
[1727204487158,6.16432085,2642.3,2641.9,2.0]
[1727204487159,3.78486,2642.1,2641.9,2.0]
[1727204487339,3.78501,2642.0,2641.9,2.0]
[1727204488734,4.78006564,2642.0,2641.9,2.0]
[1727204488962,8.83523814,2642.0,2641.9,2.0]
[1727204489467,8.49243814,2642.0,2641.9,2.0]
[1727204489627,6.11175175,2642.0,2641.9,2.0]
[1727204490556,8.49307691,2642.0,2641.9,2.0]
[1727204490757,6.11175175,2642.0,2641.9,2.0]
[1727204490962,8.49305976,2642.0,2641.9,2.0]
[1727204491483,6.11175175,2642.0,2641.9,2.0]
[1727204496480,8.49229995,2642.0,2641.9,2.0]
[1727204496883,6.11175175,2642.0,2641.9,2.0]
[1727204499662,8.49238914,2642.0,2641.9,2.0]
[1727204499867,6.11175175,2642.0,2641.9,2.0]
[1727204515352,3.78515,2641.9,2641.8,0.0385828]
[1727204515553,6.52969801,2641.9,2641.8,0.0385828]
[1727204516144,7.98134967,2641.9,2641.8,0.0385828]
[1727204520388,1.33168611,2641.9,2641.8,4.6111728]
[1727204520604,3.71565657,2642.2,2642.0,0.7873]
[1727204520802,3.71565657,2642.3,2642.1,0.7873]
[1727204521101,2.38397046,2642.3,2642.2,0.7873]
[1727204521277,6.16847046,2642.4,2642.2,0.7873]
[1727204521800,3.78458,2642.3,2642.2,0.7873]
[1727204522000,6.16847046,2642.4,2642.2,0.7873]
[1727204522204,3.7845,2642.4,2642.2,0.7873]
[1727204522376,6.16847046,2642.4,2642.2,0.7873]
[1727204523008,2.38397046,2642.4,2642.2,0.7873]
[1727204523212,2.38397046,2642.5,2642.2,0.7873]
[1727204523501,3.78446,2642.4,2642.2,0.7873]
[1727204524708,1.98582148,2642.3,2642.2,0.7873]
[1727204525404,1.98591097,2642.3,2642.2,0.7873]
[1727204525617,1.98591097,2642.3,2642.2,1.267418]
[1727204528602,1.98594728,2642.3,2642.2,1.267418]
[1727204529111,1.98594728,2642.3,2642.2,0.8102]
[1727204531694,1.98594728,2642.4,2642.2,0.8102]
[1727204532417,1.58831232,2642.3,2642.2,0.8102]
[1727204532603,1.98594728,2642.4,2642.2,0.8102]
[1727204533407,1.58831204,2642.3,2642.2,0.8102]
[1727204533588,1.98539036,2642.4,2642.2,0.8102]
[1727204534560,1.98539036,2642.4,2642.2,5.69578566]
[1727204534686,2.38246843,2642.7,2642.2,5.69578566]
[1727204534687,0.79400577,2642.3,2642.2,5.69578566]
[1727204534880,0.79400577,2642.4,2642.3,3.78458]
[1727204535085,1.19105812,2642.5,2642.3,3.78458]
[1727204535086,0.79400577,2642.5,2642.3,3.78458]
[1727204535310,0.79390591,2642.5,2642.4,5.0190384]
[1727204535521,0.79391147,2642.5,2642.4,5.0190384]
[1727204536626,0.79391147,2642.5,2642.4,1.2346084]
[1727204536793,1.19105812,2642.6,2642.4,0.8102]
[1727204537228,1.19105812,2642.5,2642.4,0.8102]
[1727204537432,0.79335375,2642.5,2642.4,0.8102]
[1727204539026,0.79335375,2642.5,2642.2,0.8102]
[1727204539027,5.23594166,2642.5,2642.2,0.8102]
[1727204539233,0.79325821,2642.4,2642.2,0.8102]
[1727204539582,0.79325821,2642.3,2642.2,0.8102]
[1727204540122,4.97534812,2642.5,2642.2,0.8102]
[1727204540123,0.79325821,2642.4,2642.2,0.8102]
[1727204540339,0.79325821,2642.3,2642.2,0.8102]
[1727204542145,0.79325821,2642.3,2642.2,0.8102]
[1727204542314,3.78472,2642.2,2642.0,0.8102]
[1727204542636,0.79320237,2642.1,2642.0,0.8102]
[1727204542836,0.79324163,2642.1,2641.9,1.5]
[1727204543019,0.79325795,2642.0,2641.9,1.5]
[1727204548439,0.79325795,2642.0,2641.9,2.3102]
[1727204549140,0.79325795,2642.2,2642.1,4.59506]
[1727204549545,0.79325795,2642.3,2642.2,3.78472]
[1727204549905,0.79331418,2642.3,2642.2,3.78472]
[1727204550106,1.19105812,2642.3,2642.2,3.78472]
[1727204550299,1.19105812,2642.3,2642.2,5.57806217]
[1727204550534,1.19105812,2642.4,2642.2,5.57806217]
[1727204551248,1.19105812,2642.5,2642.3,4.59478]
[1727204551545,1.19105812,2642.5,2642.4,1.08142938]
[1727204552642,1.58807749,2642.6,2642.4,1.08142938]
[1727204553016,1.19001054,2642.5,2642.4,1.08142938]
[1727204553345,1.58807749,2642.6,2642.4,1.08142938]
[1727204553711,1.1900752,2642.5,2642.4,1.08142938]
[1727204556552,1.1900752,2642.5,2642.4,4.86585938]
[1727204556725,1.1900752,2642.5,2642.4,3.78443]
[1727204557313,1.1900752,2642.5,2642.4,4.60533]
[1727204557620,1.1900752,2642.6,2642.4,4.60533]
[1727204557845,0.79350801,2642.5,2642.4,5.58949617]
[1727204558746,1.1900752,2642.5,2642.4,4.60533]
[1727204559457,1.1900752,2642.5,2642.2,3.78464]
[1727204559749,0.79366307,2642.3,2642.1,4.6057]
[1727204560320,0.79366307,2642.3,2642.1,5.65610173]
[1727204563431,0.79366307,2642.2,2642.1,5.65610173]
[1727204564775,0.79366307,2642.3,2642.2,3.78472]
[1727204564933,0.79366307,2642.4,2642.3,0.8209]
[1727204565139,1.19049461,2642.5,2642.3,0.8209]
[1727204565140,0.79366307,2642.5,2642.3,3.78458]
[1727204565434,1.19049461,2642.6,2642.5,3.78429]
[1727204565646,0.79451249,2642.7,2642.5,4.60519]
[1727204565858,1.19049461,2642.8,2642.7,3.784]
[1727204566837,1.19049461,2642.8,2642.7,4.6049]
[1727204567737,0.7785721,2643.0,2642.9,3.78372]
[1727204567938,1.98618579,2643.1,2642.8,3.78382]
[1727204569078,1.98618579,2643.1,2642.7,4.6049]
[1727204569280,1.98618579,2643.1,2642.8,3.78384]
[1727204570700,1.98618579,2643.1,2642.9,3.78371]
[1727204570852,1.98450667,2643.2,2642.9,3.78359]
[1727204571053,1.98450667,2643.2,2643.1,0.7624]
[1727204571295,3.71520053,2643.5,2643.2,3.78329]
[1727204571296,1.98450667,2643.5,2643.2,3.78329]
[1727204571454,1.98450667,2643.6,2643.2,7.5665]
[1727204571653,1.98450667,2643.6,2643.2,3.78321]
[1727204571654,0.79339586,2643.3,2643.2,3.78321]
[1727204573175,0.79339586,2643.3,2643.1,4.54581]
[1727204573176,0.79339586,2643.3,2643.1,3.78341]
[1727204573356,0.79339586,2643.2,2643.0,0.7624]
[1727204573584,0.79339586,2643.2,2643.0,4.5459]
[1727204575170,0.79339586,2643.3,2643.0,4.5459]
[1727204575573,0.79339586,2643.3,2643.1,3.78342]
[1727204575773,0.79339586,2643.3,2643.0,0.7624]
[1727204575774,0.79339586,2643.3,2643.0,4.54594]
[1727204577961,0.79339586,2643.3,2643.1,3.78335]
[1727204579003,0.79339586,2643.4,2643.1,3.78335]
[1727204579466,0.79339586,2643.4,2643.0,4.54594]
[1727204579662,0.79339586,2643.3,2643.0,4.54589]
[1727204580009,0.79339586,2643.3,2643.1,3.78343]
[1727204583070,0.79339586,2643.3,2643.0,3.78354]
[1727204583471,0.79339586,2643.3,2642.9,3.78363]
[1727204584863,0.79339586,2643.2,2642.9,7.56728]
[1727204585061,0.79339586,2643.3,2642.9,3.78363]
[1727204586202,0.79339586,2643.3,2643.0,3.78353]
[1727204586366,0.79339586,2643.4,2643.0,7.56704]
[1727204586567,4.57640586,2643.4,2643.0,3.78351]
[1727204587266,0.79339586,2643.3,2643.0,3.78351]
[1727204587475,0.79339586,2643.3,2642.9,3.7837]
[1727204588403,3.78321,2643.3,2642.8,0.7624]
[1727204588577,4.57660586,2643.3,2642.9,3.78372]
[1727204588782,4.57640586,2643.4,2642.9,3.78372]
[1727204589172,3.78321,2643.3,2642.8,4.5462]
[1727204589373,4.57660586,2643.3,2642.8,4.5462]
[1727204589907,4.57660586,2643.3,2642.8,8.32997]
[1727204590074,4.57660586,2643.3,2642.8,4.54617]
[1727204590269,4.57660586,2643.3,2642.8,8.32996]
[1727204590484,4.57660586,2643.3,2642.8,4.54617]
[1727204590719,4.57660586,2643.3,2643.2,0.5]
[1727204590720,0.79339586,2643.3,2643.2,0.5]
[1727204590886,0.79339586,2643.4,2643.2,0.5]
[1727204591408,4.57653586,2643.3,2643.2,0.5]
[1727204593010,0.79339586,2643.3,2643.2,0.5]
[1727204594794,0.79253316,2643.3,2643.2,1.0]
[1727204595011,4.97181334,2643.4,2643.2,1.0]
[1727204595182,6.23814934,2643.4,2643.2,1.0]
[1727204595581,3.78314,2643.3,2643.2,1.0]
[1727204595783,5.31469334,2643.3,2643.2,1.0]
[1727204596315,5.7111835,2643.3,2643.2,1.0]
[1727204598581,5.7111835,2643.3,2643.2,0.732333]
[1727204598814,6.98545588,2643.3,2643.2,1.232333]
[1727204601517,5.40021238,2643.3,2643.2,1.232333]
[1727204601710,7.3823567,2643.3,2643.2,1.232333]
[1727204602648,5.40021238,2643.3,2643.2,1.232333]
[1727204602810,5.7127053,2643.3,2643.2,1.232333]
[1727204603923,4.12594,2643.3,2643.2,1.232333]
[1727204605211,6.10941249,2643.3,2643.2,1.232333]
[1727204607330,5.76761281,2643.3,2643.2,1.232333]
[1727204608828,3.78314,2643.3,2643.2,1.232333]
[1727204609038,5.76875093,2643.3,2643.2,1.232333]
[1727204609284,3.78314,2643.3,2643.2,1.232333]
[1727204613175,1.3507299,2643.4,2643.2,1.232333]
[1727204613466,1.98723864,2643.3,2643.2,1.232333]
[1727204614367,5.07658674,2643.3,2643.2,1.232333]
[1727204614663,8.81291546,2643.3,2643.2,1.232333]
[1727204616780,8.81432943,2643.3,2643.2,1.232333]
[1727204616946,6.42810419,2643.3,2643.2,1.232333]
[1727204619397,6.42810419,2643.3,2643.2,1.22977168]
[1727204624291,5.07658674,2643.3,2643.2,1.22977168]
[1727204624499,6.42810419,2643.3,2643.2,1.22977168]
[1727204628610,6.08530419,2643.3,2643.2,1.22977168]
[1727204631815,7.11936997,2643.3,2643.2,1.22977168]
[1727204632122,6.08530419,2643.3,2643.2,1.22977168]
[1727204632423,6.42810419,2643.3,2643.2,1.22977168]
[1727204632723,9.2101549,2643.3,2643.2,1.22977168]
[1727204635899,9.20815538,2643.3,2643.2,1.22977168]
[1727204636407,5.13465745,2643.3,2643.2,1.22977168]
[1727204636790,1.35151745,2643.3,2643.2,1.22977168]
[1727204636989,3.78307,2643.4,2643.2,1.22977168]
[1727204637193,7.56621,2643.4,2643.2,1.22977168]
[1727204637521,5.13458745,2643.4,2643.2,1.22977168]
[1727204637723,3.78307,2643.4,2643.2,1.22977168]
[1727204638623,2.38242052,2643.3,2643.2,1.99277168]
[1727204639415,5.13438745,2643.5,2643.2,6.35367785]
[1727204639416,2.38242052,2643.4,2643.2,6.35367785]
[1727204639618,2.38242052,2643.5,2643.2,6.35367785]
[1727204639915,1.98578613,2643.3,2643.2,6.35367785]
[1727204640606,1.98573675,2643.3,2643.2,6.35367785]
[1727204641618,1.58880279,2643.3,2643.2,6.35367785]
[1727204641781,1.58880279,2643.3,2643.2,6.42933959]
[1727204642104,1.58880279,2643.4,2643.3,4.54614]
[1727204642293,1.19129921,2643.4,2643.3,7.15460333]
[1727204642494,1.58880279,2643.5,2643.4,4.546]
[1727204642709,1.98573675,2643.6,2643.5,4.54586]
[1727204643512,1.98573675,2643.7,2643.5,4.54586]
[1727204643683,1.98573675,2643.6,2643.5,7.08939373]
[1727204643884,1.98502144,2643.8,2643.6,0.763]
[1727204644080,2.38202573,2644.0,2643.7,3.78257]
[1727204644386,1.98496614,2643.8,2643.7,4.54637]
[1727204645119,1.98417071,2643.8,2643.7,0.7638]
[1727204645329,1.98417071,2643.9,2643.7,4.54637]
[1727204646001,1.98417071,2643.9,2643.7,0.7638]
[1727204647033,1.58665326,2643.8,2643.7,4.5463]
[1727204647192,1.58665326,2643.8,2643.7,5.53175201]
[1727204647391,1.58665326,2643.9,2643.8,3.78243]
[1727204648798,1.58665326,2644.0,2643.9,3.78229]
[1727204649033,1.58665326,2644.1,2644.0,4.54594]
[1727204649219,1.98229223,2644.3,2644.1,3.782]
[1727204649220,1.18894467,2644.2,2644.1,3.782]
[1727204649539,0.79265072,2644.2,2644.1,5.9956014]
[1727204649690,0.79265072,2644.2,2644.1,7.07115385]
[1727204650365,0.79265072,2644.4,2644.2,4.54566]
[1727204650634,0.79265072,2644.4,2644.3,3.78171]
[1727204650635,0.79230303,2644.4,2644.3,3.78171]
[1727204651442,0.79230303,2644.5,2644.3,3.78171]
[1727204652111,0.79230303,2644.5,2644.4,3.78157]
[1727204652433,0.79230303,2644.6,2644.4,4.54537]
[1727204654503,0.79230303,2644.6,2644.4,0.7638]
[1727204655133,0.79230303,2644.7,2644.4,0.7638]
[1727204655713,0.79230303,2644.7,2644.4,4.54536]
[1727204657611,0.79230303,2644.8,2644.4,4.54536]
[1727204659658,0.79230303,2644.9,2644.5,3.78142]
[1727204660751,0.79230303,2644.9,2644.5,4.75898814]
[1727204661631,3.781,2644.8,2644.4,4.54536]
[1727204661957,2.24210443,2644.9,2644.4,4.54529]
[1727204662253,4.57316303,2644.9,2644.5,3.78141]
[1727204663247,4.12385,2644.8,2644.4,4.54537]
[1727204665647,4.12385,2644.8,2644.6,0.5]
[1727204665849,7.90499,2644.8,2644.6,0.5]
[1727204666048,7.90495,2644.8,2644.6,0.5]
[1727204666256,4.12385,2644.8,2644.6,0.5]
[1727204668653,0.83088583,2645.0,2644.6,0.5]
[1727204668953,0.0385828,2645.0,2644.7,5.9946414]
[1727204669140,0.0385828,2645.0,2644.9,5.2306614]
[1727204669340,0.0385828,2645.0,2644.9,5.9944614]
[1727204669516,0.0385828,2645.0,2644.9,6.97200754]
[1727204669718,0.0385828,2645.0,2644.9,5.52220614]
[1727204670118,0.0385828,2645.0,2644.9,1.74134614]
[1727204671813,0.0385828,2645.0,2644.9,0.7638]
[1727204674634,0.0385828,2645.0,2644.7,3.78106]
[1727204674932,0.0385828,2645.0,2644.7,4.59126]
[1727204680420,0.3813828,2645.0,2644.6,4.28121]
[1727204680620,4.1621928,2645.0,2644.6,0.5]
[1727204681057,0.3813828,2645.0,2644.6,4.28115]
[1727204681358,0.0385828,2645.0,2644.6,5.168432]
[1727204681780,0.0385828,2645.0,2644.7,3.78104]
[1727204682571,3.8193328,2645.0,2644.6,5.168562]
[1727204683446,4.12367,2644.9,2644.6,0.5]
[1727204683961,0.3428,2644.9,2644.6,0.5]
[1727204687359,4.91596303,2644.9,2644.6,0.5]
[1727204688426,0.79230303,2644.8,2644.6,0.5]
[1727204689389,0.79230303,2644.9,2644.6,0.5]
[1727204689764,1.22752747,2645.0,2644.6,0.5]
[1727204689765,0.79230303,2644.8,2644.6,0.5]
[1727204690079,0.79230303,2644.9,2644.6,0.5]
[1727204690390,0.79230303,2644.8,2644.6,4.28128]
[1727204690701,0.79230303,2644.8,2644.7,0.8178]
[1727204690868,0.79230303,2644.9,2644.7,0.8178]
[1727204691680,0.79230303,2644.9,2644.7,4.59894]
[1727204692295,0.79230303,2644.8,2644.7,4.59894]
[1727204692892,0.79230303,2644.9,2644.7,4.59894]
[1727204693053,0.0385828,2645.0,2644.9,4.59866]
[1727204693257,0.0385828,2645.0,2644.9,4.67426567]
[1727204693457,0.0385828,2645.0,2644.9,6.14929546]
[1727204698106,0.0385828,2645.0,2644.9,6.07368979]
[1727204701304,0.0385828,2645.0,2644.9,5.25588979]
[1727204701473,0.0385828,2645.0,2644.9,3.78086]
[1727204711259,0.0385828,2645.0,2644.9,4.58326]
[1727204718080,0.0385828,2645.0,2644.9,4.92012158]
[1727204718486,0.0385828,2645.0,2644.9,4.58326]
[1727204721022,0.79230303,2645.5,2644.9,6.85646029]
[1727204721202,1.18894467,2645.7,2645.6,3.77986]
[1727204721203,0.79230303,2645.7,2645.6,3.77986]
[1727204721392,1.22752747,2645.8,2645.7,3.77971]
[1727204721393,0.83088583,2645.8,2645.7,3.77971]
[1727204721916,0.0385828,2645.8,2645.7,3.77971]
[1727204723982,1.53174467,2646.1,2645.8,3.77957]
[1727204723983,0.3626305,2646.1,2645.8,3.77957]
[1727204724221,1.58665326,2646.1,2645.8,3.77957]
[1727204724414,1.58665326,2646.2,2645.8,3.77957]
[1727204725709,5.36556326,2646.3,2645.6,5.22761538]
[1727204725914,6.10052735,2646.2,2645.7,3.7797]
[1727204726118,6.10052735,2646.2,2645.6,5.22761538]
[1727204726398,9.14448326,2646.3,2645.8,3.77957]
[1727204726706,1.58665326,2646.2,2645.8,3.77957]
[1727204727387,1.58665326,2646.3,2645.8,5.22726538]
[1727204727583,3.56639685,2646.5,2646.2,5.22676538]
[1727204727801,1.58665326,2646.5,2646.2,5.22676538]
[1727204728028,1.62523606,2646.6,2646.2,3.779]
[1727204728186,1.58665326,2646.5,2646.2,3.779]
[1727204728529,1.62523606,2646.6,2646.2,3.779]
[1727204729017,1.58665326,2646.5,2646.1,3.77903]
[1727204729216,1.62523606,2646.6,2646.2,3.77896]
[1727204729423,0.0385828,2646.6,2646.4,5.22640538]
[1727204729825,0.0385828,2646.6,2646.5,4.55887]
[1727204731195,0.0385828,2646.6,2646.5,4.55340813]
[1727204731585,0.0385828,2646.6,2646.3,3.77883]
[1727204731924,0.0385828,2646.6,2646.4,0.1004381]
[1727204732441,3.8170328,2646.6,2645.9,11.47246304]
[1727204732731,3.8170328,2646.6,2646.0,3.77927]
[1727204732732,3.77858,2646.5,2646.0,3.77927]
[1727204733100,3.8170328,2646.6,2646.0,3.77927]
[1727204733296,7.5955928,2646.6,2646.0,3.77927]
[1727204733495,3.8170328,2646.6,2646.0,3.77927]
[1727204733727,7.5955828,2646.6,2646.1,3.77914]
[1727204734000,3.77883,2646.4,2645.9,4.55964]
[1727204734210,3.77857,2646.5,2646.0,3.7792]
[1727204734439,3.77857,2646.5,2646.0,3.85477655]
[1727204734809,7.55724,2646.5,2645.9,11.47246304]
[1727204735310,5.48589819,2646.6,2646.0,3.85482784]
[1727204735518,7.55726,2646.5,2646.0,3.77925]
[1727204736025,5.48589819,2646.6,2646.1,3.77911]
[1727204736203,3.77864,2646.5,2646.0,7.55846]
[1727204736399,3.77864,2646.5,2646.0,7.5584]
[1727204736629,7.55733,2646.5,2646.0,3.77919]
[1727204736830,3.77864,2646.5,2645.9,4.5597]
[1727204737665,3.77879,2646.4,2645.9,4.5597]
[1727204738209,3.77873,2646.4,2645.9,7.55964]
[1727204740754,5.48588819,2646.6,2646.0,3.85475783]
[1727204741056,5.48588819,2646.6,2646.0,3.77918]
[1727204741574,3.77872,2646.4,2646.0,3.85475783]
[1727204742150,3.77872,2646.4,2646.1,0.1005061]
[1727204744659,3.77872,2646.4,2645.9,7.55973]
[1727204745095,3.77872,2646.4,2646.0,0.1005367]
[1727204749526,3.77886,2646.3,2646.0,0.1005367]
[1727204749661,3.77872,2646.4,2646.0,0.1005367]
[1727204750194,4.82390626,2646.4,2646.0,0.1005367]
[1727204750362,3.77907,2646.2,2646.0,0.1005367]
[1727204750875,7.55763,2646.4,2646.0,0.1005367]
[1727204751100,7.55764,2646.4,2646.0,0.1005367]
[1727204751456,3.77886,2646.3,2646.0,0.1005367]
[1727204751659,4.56950167,2646.4,2646.0,0.1005367]
[1727204751861,3.77881,2646.4,2646.0,0.1005367]
[1727204752299,3.77889,2646.3,2646.0,0.1005367]
[1727204753766,3.77901,2646.2,2646.0,0.1005367]
[1727204754100,4.23597017,2646.2,2646.0,0.1005367]
[1727204754400,3.779,2646.2,2645.7,0.7897]
[1727204754628,3.779,2646.2,2646.1,0.09683593]
[1727204754807,3.779,2646.2,2645.7,2.23602104]
[1727204755002,0.79069167,2646.3,2646.1,0.09683593]
[1727204755210,0.79069167,2646.3,2645.9,3.77936]
[1727204755442,0.79069167,2646.3,2646.2,0.09680534]
[1727204755600,0.79069167,2646.3,2645.9,3.77936]
[1727204755796,0.79069167,2646.3,2646.2,0.09684338]
[1727204756007,0.79069167,2646.3,2645.9,3.77936]
[1727204756211,4.56962167,2646.3,2646.2,0.09684338]
[1727204756394,4.56962167,2646.3,2645.8,3.77957]
[1727204756825,4.56962167,2646.3,2645.9,0.09693517]
[1727204757334,0.79069167,2646.2,2645.9,0.09693517]
[1727204757499,4.56962167,2646.3,2645.9,0.09693517]
[1727204758096,0.79069167,2646.2,2645.9,0.09693517]
[1727204759135,0.79069167,2646.2,2645.9,3.87634517]
[1727204760644,1.18615443,2646.2,2645.9,0.09693517]
[1727204760803,3.77921,2646.1,2645.9,0.09693517]
[1727204760999,1.18615443,2646.1,2645.6,3.77977]
[1727204761228,1.18615443,2646.1,2645.5,0.7897]
[1727204761229,4.96544443,2646.0,2645.5,0.7897]
[1727204761402,4.96544443,2646.0,2645.6,3.77985]
[1727204762207,1.18615443,2646.0,2645.6,6.36113904]
[1727204762410,1.18615443,2646.1,2645.8,4.56925]
[1727204763254,1.18615443,2646.1,2645.8,6.01557104]
[1727204763548,1.18615443,2646.0,2645.8,7.10859994]
[1727204765049,1.18615443,2646.1,2645.8,10.88809994]
[1727204765349,1.58665326,2646.2,2646.0,6.00540104]
[1727204765350,1.18615443,2646.2,2646.0,6.00540104]
[1727204765551,1.18615443,2646.3,2646.1,4.38723837]
[1727204765873,1.18615443,2646.3,2646.2,5.22532104]
[1727204766206,1.18615443,2646.4,2646.2,1.44632104]
[1727204766407,1.58665326,2646.5,2646.3,1.36315494]
[1727204766636,1.18995908,2646.4,2646.3,1.36315494]
[1727204767249,1.18995908,2646.4,2646.3,5.14201494]
[1727204768052,1.18995908,2646.4,2646.3,1.36315494]
[1727204768226,1.18995908,2646.4,2646.1,8.33799]
[1727204768421,1.18995908,2646.4,2646.1,4.55886]
[1727204768741,1.18995908,2646.4,2646.1,8.33792]
[1727204769048,1.18995908,2646.4,2646.2,3.77896]
[1727204770087,1.18995908,2646.4,2646.1,4.55886]
[1727204770396,1.18995908,2646.4,2646.2,0.455886]
[1727204770696,0.79345139,2646.3,2646.2,4.234786]
[1727204771383,1.18995908,2646.4,2646.2,4.234786]
[1727204771685,1.18995908,2646.3,2646.2,4.234786]
[1727204772251,1.18995908,2646.4,2646.2,4.32835765]
[1727204772503,1.18995908,2646.3,2646.2,4.32835765]
[1727204775286,1.58665326,2646.4,2646.2,0.54945765]
[1727204775503,1.19051182,2646.3,2646.2,0.09357165]
[1727204775785,1.58665326,2646.4,2646.2,0.09357165]
[1727204775987,1.58665326,2646.3,2646.2,0.09357165]
[1727204776346,3.77903,2646.2,2645.7,3.77965]
[1727204776601,1.1907759,2646.0,2645.8,0.0937511]
[1727204776893,1.1907759,2646.0,2645.7,3.77965]
[1727204777092,1.5877012,2646.1,2645.9,0.0937205]
[1727204777261,1.19091302,2646.0,2645.8,0.0937511]
[1727204777467,1.19091302,2645.9,2645.6,0.7798]
[1727204777665,0.7939531,2645.7,2645.6,4.55964]
[1727204778293,1.19091302,2645.8,2645.6,4.55964]
[1727204778294,0.7939531,2645.8,2645.6,5.393593]
[1727204778589,0.7939531,2645.7,2645.6,5.393593]